bitfinex/quotes_SOLUSD_20251007
["timestamp","ask_amount","ask_price","bid_price","bid_amount"]
[1759842278620,31.62369283,230.98,230.86,30.96]
[1759842280828,35.95307199,230.98,230.86,30.96]
[1759842286345,4.32918642,231.0,230.89,20.8]
[1759842287750,31.62193895,231.02,230.89,20.8]
[1759842287751,15.15085926,231.01,230.9,30.94]
[1759842287907,15.15085926,231.01,230.91,30.94]
[1759842288236,17.16589074,231.01,230.91,30.94]
[1759842288544,15.15085926,231.01,230.91,30.94]
[1759842290938,15.15085926,231.01,230.91,43.93291885]
[1759842291531,15.15085926,231.01,230.91,30.94]
[1759842296437,0.72,231.0,230.91,31.63]
[1759842296646,0.72,230.99,230.91,31.63]
[1759842297251,15.87085926,231.01,230.92,0.69]
[1759842303875,20.8,230.98,230.91,30.94]
[1759842304066,21.52,230.97,230.87,13.68517012]
[1759842304241,15.1547954,230.95,230.92,30.92]
[1759842304443,20.8,230.93,230.92,30.92]
[1759842304668,21.52,230.93,230.92,30.92]
[1759842305590,20.8,230.93,230.92,30.92]
[1759842305902,21.52,230.93,230.92,30.92]
[1759842306277,25.85031654,230.93,230.92,30.92]
[1759842306505,27.86534802,230.93,230.92,30.92]
[1759842307377,38.69113938,230.93,230.83,34.43]
[1759842307600,20.8,230.89,230.83,34.43]
[1759842307796,20.8,230.89,230.83,33.74]
[1759842308001,0.72,230.88,230.83,33.74]
[1759842308182,2.73503148,230.87,230.83,33.74]
[1759842308505,15.16070344,230.86,230.84,30.92]
[1759842308678,15.88070344,230.86,230.84,30.92]
[1759842308999,0.72,230.85,230.84,30.92]
[1759842309374,20.8,230.81,230.8,30.92]
[1759842309696,32.39647521,230.81,230.8,30.92]
[1759842309895,31.67647521,230.81,230.8,30.92]
[1759842310096,0.72,230.84,230.8,30.92]
[1759842310097,20.8,230.83,230.8,30.92]
[1759842310398,4.3323802,230.82,230.8,30.92]
[1759842310702,10.87647521,230.81,230.8,30.92]
[1759842310879,11.59647521,230.81,230.8,30.92]
[1759842311895,31.67647521,230.8,230.79,0.2]
[1759842312080,33.69150669,230.8,230.79,1e-08]
[1759842312281,34.39150669,230.8,230.79,1e-08]
[1759842312598,38.72426232,230.8,230.79,1e-08]
[1759842315695,36.70923084,230.8,230.79,1e-08]
[1759842315886,38.72426232,230.8,230.79,1e-08]
[1759842317503,71.21992956,230.8,230.69,0.2]
[1759842317674,20.8,230.76,230.69,0.9]
[1759842317877,10.87647521,230.75,230.7,0.7]
[1759842318381,10.87647521,230.75,230.69,0.2]
[1759842318382,11.52647521,230.75,230.69,0.2]
[1759842318682,20.8,230.72,230.69,0.9]
[1759842318916,20.8,230.72,230.7,27.44]
[1759842319499,25.13444584,230.71,230.7,27.44]
[1759842320022,36.01092105,230.71,230.7,27.44]
[1759842322306,10.87647521,230.7,230.69,0.2]
[1759842322684,31.67647521,230.7,230.69,0.2]
[1759842322888,20.8,230.7,230.69,0.86]
[1759842323804,25.13463372,230.7,230.69,31.78]
[1759842324398,25.13463372,230.7,230.69,31.12]
[1759842324711,39.82556903,230.7,230.69,31.12]
[1759842325017,36.01110893,230.7,230.69,31.12]
[1759842325606,25.13463372,230.7,230.69,31.81]
[1759842326183,20.8,230.7,230.69,31.81]
[1759842326497,4.3343954,230.72,230.69,31.81]
[1759842326695,4.3343954,230.72,230.7,0.69]
[1759842326885,4.3343954,230.72,230.71,0.69]
[1759842327094,4.33350667,230.76,230.71,0.69]
[1759842327390,20.8,230.74,230.72,0.69]
[1759842327598,20.8,230.73,230.72,0.69]
[1759842327813,4.33425797,230.72,230.7,0.69]
[1759842327990,4.33425797,230.72,230.7,0.66]
[1759842328193,4.33425797,230.72,230.71,0.66]
[1759842330799,4.3332947,230.78,230.71,0.66]
[1759842331261,20.8,230.79,230.71,0.66]
[1759842331512,26.03982188,230.82,230.71,0.66]
[1759842331724,20.8,230.79,230.71,0.66]
[1759842332097,4.33313112,230.78,230.72,30.92]
[1759842332516,15.16595892,230.78,230.72,30.92]
[1759842332898,15.16595892,230.78,230.72,31.63]
[1759842334097,15.16595892,230.78,230.73,0.71]
[1759842334496,15.16595892,230.78,230.74,0.71]
[1759842334714,15.16595892,230.78,230.75,0.71]
[1759842334912,15.16595892,230.78,230.72,31.63]
[1759842336627,15.16595892,230.78,230.72,0.71]
[1759842336824,15.16595892,230.78,230.73,30.92]
[1759842337012,11.58647521,230.77,230.73,30.92]
[1759842337216,20.8,230.74,230.73,30.92]
[1759842338250,25.13388229,230.74,230.73,30.92]
[1759842339123,36.66858801,230.74,230.73,30.9]
[1759842339326,39.82304811,230.74,230.73,30.9]
[1759842340235,36.66858801,230.74,230.73,30.9]
[1759842341050,35.96858801,230.74,230.73,30.9]
[1759842344144,4.33219252,230.83,230.73,31.55]
[1759842344324,4.33219252,230.83,230.74,0.65]
[1759842344526,6.59111014,230.88,230.74,0.65]
[1759842344754,20.8,230.85,230.74,0.65]
[1759842345530,5.03126,230.88,230.74,0.65]
[1759842345735,4.33126,230.88,230.74,0.65]
[1759842346046,25.13126,230.88,230.74,0.65]
[1759842346261,4.33106674,230.89,230.74,0.65]
[1759842346438,4.33106674,230.89,230.76,20.8]
[1759842346647,20.8,230.87,230.77,0.65]
[1759842346951,4.33106674,230.89,230.77,21.45]
[1759842347130,4.33106674,230.89,230.78,0.65]
[1759842347322,4.33106674,230.89,230.78,11.47674797]
[1759842347523,4.33106674,230.89,230.79,0.65]
[1759842348227,4.33087916,230.9,230.79,0.65]
[1759842348822,5.03087916,230.9,230.79,0.65]
[1759842349027,15.85807708,230.9,230.79,0.65]
[1759842350620,14.03093531,230.89,230.8,30.9]
[1759842350842,11.57647521,230.89,230.81,0.65]
[1759842351049,15.15807708,230.9,230.81,0.65]
[1759842352749,0.7,230.89,230.81,0.65]
[1759842353631,0.69,230.94,230.81,0.65]
[1759842354035,20.8,230.93,230.81,0.65]
[1759842354243,0.69,230.92,230.81,0.65]
[1759842354747,4.33069161,230.91,230.81,0.65]
[1759842354937,0.69,230.95,230.83,20.8]
[1759842355253,4.32975406,230.96,230.84,0.7]
[1759842355459,20.8,230.94,230.84,0.7]
[1759842355838,5.01975406,230.96,230.84,0.7]
[1759842356033,4.32975406,230.96,230.84,0.7]
[1759842356359,4.32937916,230.98,230.84,0.7]
[1759842356569,5.0192037,230.99,230.88,20.8]
[1759842356735,5.0192037,230.99,230.89,31.58]
[1759842356938,4.3292037,230.99,230.9,0.7]
[1759842357660,20.8,231.0,230.9,0.7]
[1759842358028,4.329034,231.0,230.9,0.7]
[1759842358232,21.49,231.01,230.9,0.7]
[1759842358631,20.8,231.01,230.9,0.7]
[1759842359232,4.42855483,231.03,230.92,20.8]
[1759842359433,4.42855483,231.03,230.93,0.7]
[1759842359665,0.69,231.02,230.93,0.7]
[1759842360035,4.42855483,231.03,230.93,0.7]
[1759842360437,0.1,231.03,230.93,0.7]
[1759842360638,4.42847628,231.03,230.93,0.7]
[1759842361942,0.1,231.03,230.93,0.7]
[1759842362645,0.1,231.03,230.94,10.87647521]
[1759842362837,0.1,231.03,230.96,10.87647521]
[1759842363033,0.1,231.03,230.97,30.86]
[1759842363330,0.1,231.03,230.98,0.7]
[1759842363543,0.1,231.03,230.99,0.7]
[1759842363738,0.1,231.03,231.0,0.7]
[1759842365163,0.79,231.03,230.97,31.56]
[1759842365343,5.11845864,231.03,230.97,0.7]
[1759842365544,5.11845864,231.03,230.98,30.86]
[1759842365754,0.69,231.02,230.98,30.86]
[1759842366365,0.1,231.03,230.98,30.86]
[1759842366565,0.79,231.03,230.98,30.86]
[1759842367060,5.11846296,231.03,230.98,30.86]
[1759842367263,0.79,231.03,230.98,30.86]
[1759842367846,0.69,231.02,230.91,0.7]
[1759842368055,0.69,231.02,230.92,28.92]
[1759842368257,39.20403794,231.03,230.92,28.92]
[1759842368258,20.8,231.0,230.92,28.92]
[1759842368777,0.69,230.99,230.92,28.92]
[1759842368961,4.32937916,230.98,230.92,28.92]
[1759842370766,5.01937916,230.98,230.91,0.7]
[1759842371076,5.01937916,230.98,230.93,30.86]
[1759842372142,0.69,230.98,230.93,31.56]
[1759842372342,5.01939496,230.98,230.93,31.56]
[1759842372745,4.32939496,230.98,230.93,31.56]
[1759842373480,0.1,231.03,230.94,0.7]
[1759842373971,0.1,231.03,230.96,20.8]
[1759842374181,0.1,231.03,230.97,0.7]
[1759842377571,5.11850601,231.03,230.98,30.84]
[1759842377742,0.69,231.02,230.99,30.84]
[1759842378671,0.1,231.03,230.99,30.84]
[1759842378847,0.1,231.03,230.99,31.54]
[1759842379053,4.42846762,231.03,230.99,31.54]
[1759842379658,5.11846762,231.03,230.99,30.84]
[1759842380569,4.42846762,231.03,230.99,30.84]
[1759842380773,0.69,231.02,231.0,30.84]
[1759842380978,0.69,231.02,231.01,30.84]
[1759842381572,4.42846762,231.03,231.01,30.84]
[1759842381753,5.01862955,231.02,231.01,30.84]
[1759842382562,4.42844559,231.03,231.01,30.84]
[1759842383053,5.11844559,231.03,231.01,30.84]
[1759842384450,5.03862955,231.02,231.01,30.84]
[1759842384652,5.03862955,231.02,230.93,0.66]
[1759842384851,2.01288044,230.99,230.92,33.72]
[1759842385068,2.72288044,230.98,230.94,30.84]
[1759842385359,0.71,230.97,230.95,30.84]
[1759842385566,0.71,230.96,230.95,30.84]
[1759842385970,0.71,230.96,230.92,33.72]
[1759842386172,0.71,230.96,230.93,30.84]
[1759842386356,2.72288044,230.98,230.93,30.84]
[1759842386556,7.05238204,230.98,230.93,31.5]
[1759842386770,5.0395016,230.98,230.93,30.84]
[1759842387584,4.3295016,230.98,230.93,30.84]
[1759842387787,5.0395016,230.98,230.93,30.84]
[1759842388492,4.32975406,230.96,230.93,30.84]
[1759842388883,5.03975406,230.96,230.93,30.84]
[1759842391274,4.33012903,230.94,230.93,30.84]
[1759842391482,7.05300947,230.94,230.92,33.72]
[1759842391794,5.04012903,230.94,230.93,30.84]
[1759842392366,4.33012903,230.94,230.93,30.84]
[1759842392973,20.8,230.95,230.93,30.84]
[1759842393388,4.33012903,230.94,230.93,30.84]
[1759842396900,5.04012903,230.94,230.93,30.84]
[1759842397087,4.33012903,230.94,230.93,30.84]
[1759842397779,6.34300947,230.94,230.93,30.84]
[1759842397988,7.05300947,230.94,230.93,30.84]
[1759842398886,5.04012903,230.94,230.93,30.84]
[1759842401469,15.91660424,230.94,230.93,30.84]
[1759842401671,20.8,230.9,230.84,0.66]
[1759842401876,2.01288044,230.89,230.84,0.66]
[1759842402178,2.67288044,230.88,230.85,26.26]
[1759842402389,2.67288044,230.88,230.86,26.26]
[1759842402774,4.33144193,230.87,230.86,26.26]
[1759842403203,27.14432237,230.87,230.86,26.26]
[1759842403575,27.80432237,230.87,230.86,26.26]
[1759842404698,25.13144193,230.87,230.86,26.26]
[1759842404899,27.14432237,230.87,230.86,26.26]
[1759842405399,25.13144193,230.87,230.86,26.26]
[1759842406512,4.33069161,230.91,230.86,26.26]
[1759842406794,20.8,230.9,230.87,0.66]
[1759842407173,20.8,230.9,230.88,0.66]
[1759842407369,25.13069161,230.91,230.88,0.66]
[1759842407598,25.13069161,230.91,230.89,0.66]
[1759842407805,25.13069161,230.91,230.9,0.66]
[1759842408673,4.33031654,230.93,230.86,26.26]
[1759842408875,15.1561079,230.93,230.87,0.66]
[1759842410135,2.01288044,230.92,230.86,26.26]
[1759842410293,2.01288044,230.92,230.85,0.66]
[1759842410294,2.01288044,230.92,230.87,30.84]
[1759842410494,0.66,230.91,230.87,30.84]
[1759842410720,2.01288044,230.89,230.87,30.84]
[1759842410930,0.66,230.88,230.82,0.66]
[1759842411104,2.67288044,230.88,230.83,30.84]
[1759842411299,0.66,230.88,230.83,31.5]
[1759842411615,2.01288044,230.89,230.84,0.66]
[1759842411918,2.01288044,230.89,230.85,0.66]
[1759842412102,25.13087916,230.9,230.86,0.66]
[1759842412302,27.1437596,230.9,230.86,0.66]
[1759842412738,37.97095752,230.9,230.86,0.66]
[1759842412900,35.95807708,230.9,230.87,0.66]
[1759842413104,4.33087916,230.9,230.88,0.66]
[1759842413318,4.33087916,230.9,230.89,0.68]
[1759842414226,4.33050407,230.92,230.89,0.68]
[1759842414405,20.8,230.91,230.9,30.84]
[1759842415121,2.01288044,230.91,230.9,30.84]
[1759842415324,2.69288044,230.91,230.9,30.84]
[1759842415827,2.69288044,230.91,230.78,20.8]
[1759842415828,2.69288044,230.91,230.84,0.68]
[1759842416125,20.8,230.89,230.85,30.82]
[1759842416426,4.33125433,230.88,230.85,31.5]
[1759842416718,4.33125433,230.88,230.85,30.82]
[1759842416902,4.33125433,230.88,230.85,31.5]
[1759842417722,4.33125433,230.88,230.85,30.82]
[1759842417909,4.33125433,230.88,230.86,0.68]
[1759842418114,4.33125433,230.88,230.85,30.82]
[1759842418301,4.33125433,230.88,230.85,31.5]
[1759842419121,4.33125433,230.88,230.85,30.82]
[1759842419317,4.33125433,230.88,230.86,30.82]
[1759842420025,4.33125433,230.88,230.86,31.5]
[1759842420525,20.8,230.87,230.86,30.82]
[1759842420708,4.33125433,230.88,230.86,31.5]
[1759842422712,4.33106674,230.89,230.86,31.5]
[1759842423105,4.33106674,230.89,230.87,0.68]
[1759842423322,4.33106674,230.89,230.88,0.68]
[1759842423906,4.33106674,230.89,230.86,31.5]
[1759842424126,15.15873359,230.89,230.86,31.5]
[1759842424325,20.8,230.87,230.86,30.82]
[1759842424924,4.33144193,230.87,230.86,30.82]
[1759842425230,17.85292721,230.87,230.8,0.68]
[1759842425400,26.71652198,230.87,230.86,30.82]
[1759842426214,28.72940242,230.87,230.86,30.82]
[1759842426502,26.71652198,230.87,230.86,30.82]
[1759842427027,28.72940242,230.87,230.86,30.82]
[1759842427231,26.71652198,230.87,230.86,30.82]
[1759842428023,20.8,230.84,230.81,0.68]
[1759842428333,20.8,230.84,230.82,30.82]
[1759842428523,21.48,230.84,230.82,30.82]
[1759842428849,4.33219252,230.83,230.82,30.82]
[1759842429033,4.33219252,230.83,230.82,31.5]
[1759842429412,20.8,230.85,230.82,31.5]
[1759842429610,46.4,230.88,230.83,0.68]
[1759842430703,4.33144193,230.87,230.83,0.68]
[1759842431834,20.8,230.88,230.83,0.68]
[1759842432414,4.33106674,230.89,230.83,0.68]
[1759842432726,15.15840625,230.9,230.83,0.68]
[1759842433729,15.83840625,230.9,230.83,0.68]
[1759842434808,15.83840625,230.9,230.84,30.82]
[1759842435719,15.83840625,230.9,230.84,31.5]
[1759842438032,0.68,230.89,230.82,0.68]
[1759842438239,0.68,230.89,230.83,30.82]
[1759842438610,20.8,230.87,230.75,33.74]
[1759842438810,23.49288044,230.86,230.79,0.68]
[1759842439036,23.49288044,230.86,230.8,30.8]
[1759842439037,2.01288044,230.85,230.8,30.8]
[1759842439212,0.68,230.84,230.8,30.8]
[1759842439906,38.65555426,230.83,230.75,34.42]
[1759842440108,2.01288044,230.82,230.76,30.8]
[1759842440509,36.64267382,230.83,230.75,33.74]
[1759842440510,22.81288044,230.8,230.75,33.74]
[1759842440737,2.01288044,230.78,230.75,33.74]
[1759842440938,2.01288044,230.77,230.75,33.74]
[1759842441244,2.01288044,230.77,230.76,30.8]
[1759842441442,31.67647521,230.77,230.76,30.8]
[1759842441628,32.35647521,230.77,230.76,30.8]
[1759842442120,36.68979409,230.77,230.76,30.8]
[1759842443925,39.84291111,230.77,230.76,30.8]
[1759842444343,36.68979409,230.77,230.76,30.8]
[1759842444531,36.00979409,230.77,230.76,30.8]
[1759842445134,25.13331888,230.77,230.76,30.8]
[1759842445816,20.8,230.77,230.76,30.8]
[1759842446219,20.8,230.77,230.76,31.47]
[1759842447352,20.8,230.77,230.76,30.8]
[1759842447725,20.8,230.77,230.76,31.47]
[1759842447951,25.13331888,230.77,230.76,30.8]
[1759842448125,4.33331888,230.77,230.76,31.47]
[1759842448452,25.13331888,230.77,230.76,31.47]
[1759842448954,25.13331888,230.77,230.76,30.8]
[1759842449122,4.33331888,230.77,230.76,31.47]
[1759842449549,20.8,230.78,230.76,31.47]
[1759842449752,25.13314426,230.78,230.76,30.8]
[1759842450053,25.13314426,230.78,230.76,31.47]
[1759842450768,20.8,230.77,230.75,33.74]
[1759842450921,20.8,230.77,230.76,30.8]
[1759842451125,25.13331888,230.77,230.76,30.8]
[1759842453628,4.33294336,230.79,230.76,31.47]
[1759842454739,25.13294336,230.79,230.76,31.47]
[1759842455458,35.96530178,230.79,230.76,30.8]
[1759842455630,36.64530178,230.79,230.76,30.8]
[1759842455829,35.96530178,230.79,230.76,30.8]
[1759842456057,0.68,230.78,230.75,33.74]
[1759842456360,39.1184188,230.79,230.77,30.8]
[1759842456758,0.68,230.78,230.77,30.8]
[1759842457059,5.01313112,230.78,230.77,30.8]
[1759842457253,15.88960633,230.78,230.77,30.8]
[1759842457434,15.20960633,230.78,230.77,30.8]
[1759842458250,15.90960633,230.78,230.77,30.8]
[1759842458758,10.87647521,230.77,230.75,33.74]
[1759842458932,11.57647521,230.77,230.76,30.8]
[1759842459133,15.90979409,230.77,230.76,30.8]
[1759842460255,15.20979409,230.77,230.76,30.8]
[1759842462254,15.90979409,230.77,230.76,30.8]
[1759842465257,19.06291111,230.77,230.76,30.8]
[1759842469250,19.06291111,230.77,230.75,33.74]
[1759842469464,18.36291111,230.77,230.76,30.78]
[1759842469658,18.36291111,230.77,230.75,33.74]
[1759842469857,18.36291111,230.77,230.76,30.78]
[1759842470465,19.06291111,230.77,230.76,30.78]
[1759842471963,19.06291111,230.77,230.75,33.74]
[1759842472148,20.8,230.74,230.71,0.68]
[1759842472355,4.33331888,230.77,230.71,0.68]
[1759842472552,20.8,230.75,230.71,0.68]
[1759842472869,25.13383214,230.75,230.71,0.68]
[1759842473167,25.13383214,230.75,230.72,26.18]
[1759842473346,25.13383214,230.75,230.73,0.65]
[1759842474254,35.96806832,230.75,230.74,22.18]
[1759842475352,35.96806832,230.75,230.74,30.78]
[1759842475751,36.68806832,230.75,230.74,30.78]
[1759842476072,46.84454353,230.75,230.74,30.78]
[1759842479970,20.8,230.75,230.74,31.43]
[1759842480444,25.13369447,230.75,230.74,31.43]
[1759842482058,35.96793065,230.75,230.72,0.65]
[1759842482259,35.96793065,230.75,230.73,30.78]
[1759842483254,35.96793065,230.75,230.7,0.65]
[1759842483460,35.96793065,230.75,230.71,30.78]
[1759842483461,36.68793065,230.75,230.71,30.78]
[1759842484679,36.68793065,230.75,230.69,0.2]
[1759842484851,0.72,230.74,230.7,30.76]
[1759842485175,35.96793065,230.75,230.7,31.41]
[1759842485370,36.68793065,230.75,230.7,31.41]
[1759842485565,35.96793065,230.75,230.71,0.65]
[1759842486158,35.96793065,230.75,230.7,30.76]
[1759842486380,35.96793065,230.75,230.7,31.41]
[1759842486563,0.72,230.74,230.7,31.41]
[1759842486966,20.8,230.71,230.7,31.41]
[1759842487160,31.67647521,230.7,230.69,0.2]
[1759842487354,32.39647521,230.7,230.69,30.96]
[1759842488080,29.93407012,230.73,230.69,31.61]
[1759842488255,20.8,230.71,230.7,30.76]
[1759842488462,20.8,230.71,230.7,31.41]
[1759842489063,25.13444584,230.71,230.7,30.76]
[1759842490872,25.13444584,230.71,230.7,31.41]
[1759842491974,4.33444584,230.71,230.7,31.41]
[1759842492174,25.13444584,230.71,230.7,31.41]
[1759842492883,4.33444584,230.71,230.7,31.41]
[1759842493256,15.16924543,230.73,230.7,31.41]
[1759842493457,25.13407012,230.73,230.71,0.65]
[1759842493693,20.8,230.73,230.71,0.65]
[1759842494186,35.96862859,230.74,230.71,0.65]
[1759842494391,35.96862859,230.74,230.7,30.76]
[1759842494755,35.96862859,230.74,230.7,31.41]
[1759842495086,10.87647521,230.73,230.71,30.76]
[1759842495309,4.33425797,230.72,230.71,30.76]
[1759842496660,20.8,230.7,230.69,0.2]
[1759842496860,20.8,230.7,230.69,30.96]
[1759842497379,25.13463372,230.7,230.69,30.96]
[1759842497802,25.85463372,230.7,230.69,30.96]
[1759842498093,25.13463372,230.7,230.69,30.96]
[1759842499383,25.13463372,230.7,230.69,31.61]
[1759842500212,25.13425797,230.72,230.69,31.61]
[1759842500368,25.13425797,230.72,230.7,0.65]
[1759842500571,25.13425797,230.72,230.69,30.96]
[1759842500572,25.13425797,230.72,230.71,0.65]
[1759842501419,4.33369447,230.75,230.71,0.65]
[1759842501580,15.16793065,230.75,230.71,0.65]
[1759842501781,20.8,230.73,230.72,0.65]
[1759842502023,20.8,230.72,230.69,30.96]
[1759842502380,15.16793065,230.75,230.7,0.65]
[1759842503103,35.96793065,230.75,230.69,30.96]
[1759842503404,35.96793065,230.75,230.71,0.65]
[1759842503592,20.8,230.73,230.72,0.66]
[1759842504491,4.3337766,230.75,230.72,0.66]
[1759842504787,4.3337766,230.75,230.69,30.96]
[1759842504987,4.3337766,230.75,230.7,0.66]
[1759842505504,4.3337766,230.75,230.71,0.66]
[1759842505801,15.16801278,230.75,230.72,0.66]
[1759842506993,15.16801278,230.75,230.7,0.66]
[1759842507206,15.16801278,230.75,230.71,0.66]
[1759842507513,0.72,230.74,230.69,0.2]
[1759842507709,15.16801278,230.75,230.72,30.74]
[1759842507916,21.52,230.73,230.72,30.74]
[1759842508112,20.8,230.73,230.72,30.74]
[1759842509212,25.13407012,230.73,230.72,30.74]
[1759842510291,4.33407012,230.73,230.72,31.4]
[1759842510492,20.8,230.7,230.69,0.2]
[1759842510713,31.67647521,230.7,230.69,30.94]
[1759842510896,32.39647521,230.7,230.69,30.94]
[1759842511316,36.73110893,230.7,230.69,30.94]
[1759842513418,36.01110893,230.7,230.69,30.94]
[1759842513606,36.73110893,230.7,230.69,30.94]
[1759842515935,38.748661,230.7,230.69,30.94]
[1759842516605,36.73110893,230.7,230.69,30.94]
[1759842517010,36.01110893,230.7,230.69,30.94]
[1759842518806,25.13463372,230.7,230.69,30.94]
[1759842519008,25.13463372,230.7,230.69,31.65]
[1759842521702,10.83396667,230.76,230.69,31.65]
[1759842522018,20.8,230.73,230.7,0.71]
[1759842522321,4.33369447,230.75,230.7,0.71]
[1759842522530,20.8,230.74,230.7,0.71]
[1759842523129,20.8,230.72,230.7,0.71]
[1759842523517,20.8,230.72,230.71,0.71]
[1759842526546,25.13425797,230.72,230.71,0.71]
[1759842528733,25.13425797,230.72,230.71,30.72]
[1759842529246,25.13425797,230.72,230.71,31.43]
[1759842529424,20.8,230.72,230.71,31.43]
[1759842530348,20.8,230.72,230.71,30.72]
[1759842530521,25.13425797,230.72,230.71,30.72]
[1759842533728,25.13425797,230.72,230.69,0.2]
[1759842533729,36.6799029,230.72,230.69,0.2]
[1759842534049,35.9699029,230.72,230.71,30.72]
[1759842535127,35.9699029,230.72,230.71,31.41]
[1759842535329,20.8,230.73,230.71,31.41]
[1759842535547,4.33369447,230.75,230.72,0.69]
[1759842536136,25.13369447,230.75,230.72,0.69]
[1759842537045,25.13369447,230.75,230.73,0.69]
[1759842539455,20.8,230.74,230.73,0.69]
[1759842539650,20.8,230.74,230.71,31.41]
[1759842540043,20.8,230.74,230.72,0.69]
[1759842540839,25.13388229,230.74,230.73,31.39]
[1759842541153,4.33162955,230.86,230.73,31.39]
[1759842541331,4.33162955,230.86,230.74,0.69]
[1759842541755,4.33138652,230.88,230.74,0.69]
[1759842541959,4.33138652,230.88,230.75,13.00249214]
[1759842542159,15.15705204,230.92,230.76,0.69]
[1759842542464,4.33050407,230.92,230.8,20.8]
[1759842542632,25.13050407,230.92,230.81,31.39]
[1759842542832,4.33012903,230.94,230.82,0.69]
[1759842543054,5.04012903,230.94,230.82,13.68911172]
[1759842543354,5.04012903,230.94,230.83,0.69]
[1759842543558,20.8,230.91,230.83,0.69]
[1759842543859,4.32993528,230.96,230.83,34.45]
[1759842544163,4.32993528,230.96,230.84,0.69]
[1759842544743,10.8236989,230.98,230.84,0.69]
[1759842544744,4.32955843,230.98,230.84,0.69]
[1759842544949,15.20565202,231.0,230.84,0.69]
[1759842545257,20.8,230.97,230.84,0.69]
[1759842545561,0.71,230.96,230.85,30.7]
[1759842545857,0.71,230.96,230.86,0.69]
[1759842546056,0.71,230.96,230.87,30.7]
[1759842546242,0.71,230.96,230.88,0.69]
[1759842547062,5.03993033,230.96,230.88,0.69]
[1759842547359,20.8,231.0,230.88,0.69]
[1759842547561,20.8,231.0,230.89,12.99460723]
[1759842547744,20.8,231.0,230.9,0.69]
[1759842547944,21.51,231.0,230.91,30.7]
[1759842548146,21.51,231.0,230.92,31.37]
[1759842549046,4.32919173,230.99,230.92,31.37]
[1759842549661,4.32919173,230.99,230.93,0.69]
[1759842552274,4.32919173,230.99,230.94,30.68]
[1759842552472,5.03919173,230.99,230.94,30.68]
[1759842553773,5.03919173,230.99,230.95,0.69]
[1759842553976,25.12919173,230.99,230.94,30.68]
[1759842554175,25.12919173,230.99,230.95,0.69]
[1759842554379,25.12919173,230.99,230.94,30.68]
[1759842554380,20.8,230.99,230.96,0.69]
[1759842554677,0.1,231.03,230.96,0.69]
[1759842554852,0.1,231.03,230.97,30.68]
[1759842555052,20.9,231.03,230.98,0.69]
[1759842555264,20.9,231.03,230.99,0.69]
[1759842555485,0.1,231.03,230.99,0.69]
[1759842555652,0.1,231.03,231.0,0.69]
[1759842555853,0.1,231.03,231.01,0.69]
[1759842556082,0.1,231.03,231.02,30.68]
[1759842556854,0.1,231.03,231.02,31.37]
[1759842559082,0.1,231.03,231.02,42.24647521]